bitfinex-derivatives/quotes_ETHF0:USTF0_20250621
["timestamp","ask_amount","ask_price","bid_price","bid_amount"]
[1750528140403,3.8842,2403.0,2402.9,0.83217]
[1750528140905,0.83217,2402.9,2402.7,0.83221]
[1750528141202,0.8322,2402.8,2402.7,0.83221]
[1750528141604,2.25979,2402.9,2402.8,0.8322]
[1750528141796,2.25979,2402.9,2402.4,0.6918]
[1750528141999,3.2078,2402.7,2402.3,3.9145]
[1750528142198,0.83227,2402.6,2402.4,0.83232]
[1750528142503,0.83231,2402.5,2402.4,0.83232]
[1750528142904,2.83999,2402.6,2402.5,0.83231]
[1750528143091,2.83999,2402.6,2402.3,3.2078]
[1750528143292,2.0077,2402.6,2402.3,4.04015]
[1750528143499,0.83234,2402.4,2402.3,0.83235]
[1750528144004,2.0077,2402.6,2402.1,2.08112]
[1750528144202,2.83999,2402.6,2402.5,0.83231]
[1750528144399,2.0077,2402.6,2402.5,0.83231]
[1750528144607,0.6857,2402.6,2402.5,0.83231]
[1750528144796,35.3326,2402.9,2402.8,0.8322]
[1750528144797,1.3286,2402.9,2402.8,0.8322]
[1750528145109,1.3286,2402.9,2402.7,0.83222]
[1750528145110,0.83221,2402.8,2402.7,0.83222]
[1750528145301,2.16079,2402.9,2402.8,0.8322]
[1750528145501,0.83221,2402.8,2402.7,0.83222]
[1750528146008,2.16079,2402.9,2402.8,0.8322]
[1750528147105,0.83221,2402.8,2402.7,0.83221]
[1750528147307,2.16079,2402.9,2402.8,0.8322]
[1750528147505,1.3286,2402.9,2402.8,0.8322]
[1750528147713,2.16077,2402.9,2402.8,0.8322]
[1750528148310,1.3286,2402.9,2402.8,0.8322]
[1750528148910,0.83222,2402.8,2402.7,0.83222]
[1750528149109,1.3286,2402.9,2402.5,1.3102]
[1750528149309,0.83223,2402.8,2402.7,0.83223]
[1750528150510,0.83224,2402.7,2402.6,0.83225]
[1750528150810,0.83236,2402.4,2402.3,0.83237]
[1750528151010,0.83232,2402.5,2402.4,0.83232]
[1750528151211,0.83236,2402.4,2402.3,0.83236]
[1750528152008,0.6635,2402.5,2402.0,7.36997]
[1750528152203,1.49582,2402.5,2402.4,0.83234]
[1750528152404,0.6635,2402.5,2402.4,0.83234]
[1750528152599,29.8568,2402.7,2402.2,2.08103]
[1750528152805,0.83224,2402.7,2402.6,0.83225]
[1750528153006,28.14269,2402.9,2402.8,0.8322]
[1750528153313,0.83223,2402.8,2402.7,0.83223]
[1750528154115,29.54269,2402.9,2402.8,0.8322]
[1750528154415,0.83221,2402.8,2402.7,0.83221]
[1750528155416,0.83224,2402.7,2402.6,0.83225]
[1750528155616,0.83223,2402.8,2402.7,0.83223]
[1750528156514,0.83224,2402.7,2402.6,0.83225]
[1750528156711,0.83222,2402.8,2402.7,0.83222]
[1750528156914,5.28831,2402.8,2401.9,7.33785129]
[1750528157113,0.83235,2402.4,2402.3,0.83235]
[1750528157311,0.83232,2402.5,2402.4,0.83234]
[1750528159215,0.83229,2402.6,2402.5,0.83228]
[1750528161015,0.83232,2402.5,2402.4,0.83232]
[1750528161919,12.65780599,2402.8,2402.7,0.83224]
[1750528161920,26.69747599,2402.8,2402.7,0.83224]
[1750528162127,0.06847599,2402.8,2402.7,0.83224]
[1750528162814,1.49569,2402.9,2402.8,0.8322]
[1750528165320,0.83222,2402.8,2402.7,0.83221]
[1750528165820,0.83227,2402.6,2402.5,0.83229]
[1750528166117,2.24306,2402.7,2402.6,0.83227]
[1750528166313,3.27627599,2402.8,2402.7,0.83224]
[1750528166518,0.06847599,2402.8,2402.7,0.83224]
[1750528166831,0.83221,2402.8,2402.7,0.83224]
[1750528167037,27.2805,2402.9,2402.4,5.38740228]
[1750528167340,0.83222,2402.8,2402.7,0.83222]
[1750528167833,28.11268,2402.9,2402.8,0.8322]
[1750528168033,0.83226,2402.7,2402.6,0.83225]
[1750528168231,0.83222,2402.8,2402.6,0.83225]
[1750528168835,0.83224,2402.7,2402.6,0.83225]
[1750528169537,0.83222,2402.8,2402.7,0.83223]
[1750528170427,29.52149,2402.9,2402.8,0.8322]
[1750528170631,27.2745,2402.9,2402.8,0.8322]
[1750528170832,28.10667,2402.9,2402.8,0.8322]
[1750528171032,27.2745,2402.9,2402.8,0.8322]
[1750528171228,1.4041,2403.2,2402.9,2.08042]
[1750528171460,3.2078,2403.4,2403.3,0.83203]
[1750528171639,9.38053,2404.0,2403.6,0.83192]
[1750528171640,4.5819,2403.8,2403.6,0.83192]
[1750528171838,4.5819,2403.8,2403.5,0.83194]
[1750528172032,0.83192,2403.6,2403.5,0.83194]
[1750528172331,4.5819,2403.8,2403.4,0.83196]
[1750528172332,5.8909,2403.8,2403.4,0.83196]
[1750528172537,32.4959,2403.8,2403.3,0.6582]
[1750528172843,0.83192,2403.6,2403.5,0.83193]
[1750528173227,4.5819,2403.8,2403.7,0.83189]
[1750528173430,3.2078,2403.8,2403.7,0.83189]
[1750528174938,4.03966,2403.8,2403.7,0.83189]
[1750528175434,3.2078,2403.8,2403.7,0.83189]
[1750528176547,4.03953,2404.2,2404.0,0.83176]
[1750528176842,4.03953,2404.2,2403.7,2.07973]
[1750528176843,3.2078,2404.2,2403.8,3.2078]
[1750528177038,3.2078,2404.5,2403.9,0.6821]
[1750528177235,0.83171,2404.3,2404.2,0.83172]
[1750528177542,0.83163,2404.5,2404.4,0.83165]
[1750528177746,29.3406,2404.7,2404.2,0.83169]
[1750528178839,0.8317,2404.3,2404.1,4.70563]
[1750528179249,0.83184,2403.9,2403.8,3.2078]
[1750528184249,0.83184,2403.9,2403.4,55.203]
[1750528184250,0.83196,2403.5,2403.4,3.2078]
[1750528184549,0.83203,2403.4,2403.3,7.261]
[1750528184848,0.83202,2403.4,2403.2,8.09305]
[1750528185146,0.83203,2403.3,2403.2,8.09305]
[1750528185350,0.83207,2403.2,2403.1,0.83208]
[1750528185552,0.83205,2403.3,2403.2,0.83206]
[1750528185942,2.19191,2403.4,2403.3,0.83203]
[1750528186140,0.83203,2403.3,2403.2,0.83204]
[1750528186551,1.48098,2403.5,2403.1,7.261]
[1750528186743,0.83203,2403.4,2403.1,7.261]
[1750528186942,2.19193,2403.4,2403.3,0.83203]
[1750528187742,0.83204,2403.3,2403.2,0.83204]
[1750528187942,0.83208,2403.2,2403.1,0.83208]
[1750528188243,0.83206,2403.3,2403.2,0.83204]
[1750528188553,5.2879,2403.3,2402.8,0.83218]
[1750528188753,0.83217,2402.9,2402.7,8.09321]
[1750528189051,0.06847599,2402.9,2402.8,0.8322]
[1750528190147,0.83215,2403.0,2402.8,0.8322]
[1750528190651,0.83217,2402.9,2402.8,0.83218]
[1750528190854,0.8322,2402.8,2402.7,0.83221]
[1750528191050,2.0977,2403.2,2402.6,3.887]
[1750528191051,0.83218,2402.9,2402.8,0.83218]
[1750528191244,0.83217,2402.9,2402.8,0.83218]
[1750528191551,0.83216,2403.0,2402.9,0.83216]
[1750528192951,0.83212,2403.1,2403.0,0.83212]
[1750528193137,2.15932,2403.1,2403.0,0.83212]
[1750528193553,0.83214,2403.0,2402.9,0.83214]
[1750528193749,0.83224,2402.7,2402.6,3.2078]
[1750528194360,26.552,2402.7,2402.3,2.48218756]
[1750528194647,0.83241,2402.2,2402.1,3.31460756]
[1750528194849,0.83244,2402.1,2402.0,5.68998756]
[1750528195044,2.13274,2402.1,2402.0,3.2078]
[1750528196352,2.13274,2402.1,2402.0,4.04028]
[1750528196552,0.83244,2402.2,2402.1,0.83244]
[1750528196755,0.83244,2402.2,2402.0,3.2078]
[1750528196756,0.83244,2402.1,2402.0,3.2078]
[1750528197053,0.83244,2402.1,2402.0,4.04026]
[1750528197241,1.9585,2402.3,2402.0,3.2078]
[1750528197445,0.83235,2402.4,2402.3,0.83237]
[1750528197750,0.83238,2402.3,2402.2,0.83239]
[1750528198045,0.83234,2402.4,2402.3,0.83235]
[1750528198342,0.83241,2402.2,2402.1,0.6645]
[1750528198543,0.6609,2402.6,2402.0,4.04027]
[1750528198544,0.83244,2402.1,2402.0,4.04027]
[1750528199746,0.83244,2402.1,2402.0,4.04028]
[1750528200449,0.83243,2402.2,2402.1,0.83244]
[1750528200650,0.83244,2402.1,2402.0,4.04026]
[1750528201554,0.83242,2402.2,2402.1,0.83243]
[1750528202050,3.2078,2402.4,2402.2,0.83239]
[1750528202353,0.83238,2402.3,2402.2,0.83239]
[1750528203063,0.83244,2402.1,2402.0,3.2078]
[1750528203249,0.83244,2402.2,2402.1,0.83244]
[1750528203549,0.83244,2402.1,2402.0,11.30325]
[1750528203753,0.83244,2402.1,2402.0,3.2078]
[1750528203956,0.83244,2402.1,2402.0,4.04028]
[1750528204358,0.83243,2402.2,2402.1,0.83243]
[1750528204960,0.83244,2402.1,2402.0,4.04025]
[1750528205255,0.90091599,2402.1,2402.0,4.04025]
[1750528205957,0.06847599,2402.1,2402.0,4.04025]
[1750528206852,0.06847599,2402.1,2402.0,11.26725]
[1750528208559,3.37482,2402.7,2402.1,2.08111]
[1750528208560,1.2942,2402.7,2402.1,2.08111]
[1750528208852,1.2942,2402.7,2402.6,0.83227]
[1750528209158,2.12644,2402.7,2402.6,0.83227]
[1750528209951,0.83224,2402.7,2402.6,0.83227]
[1750528210349,0.6991,2402.8,2402.3,5.96474]
[1750528210555,0.83225,2402.7,2402.6,0.83224]
[1750528210857,1.53131,2402.8,2402.7,0.83224]
[1750528211758,2.93281,2402.8,2402.7,0.83224]
[1750528212358,1.51878,2402.9,2402.8,0.8322]
[1750528212655,0.83222,2402.8,2402.7,0.83222]
[1750528214757,1.51879,2402.9,2402.8,0.8322]
[1750528214951,2.90669,2402.9,2402.8,0.8322]
[1750528215154,0.83223,2402.8,2402.6,0.83224]
[1750528215360,0.83223,2402.8,2402.7,0.83224]
[1750528215848,2.22013,2402.8,2402.7,0.83224]
[1750528216553,1.3879,2402.8,2402.7,0.83224]
[1750528217361,2.2201,2402.8,2402.7,0.83224]
[1750528219569,2.28857599,2402.8,2402.7,0.83224]
[1750528220358,1.45637599,2402.8,2402.3,3.8838]
[1750528220662,1.45637599,2402.8,2401.8,4.9055123]
[1750528220663,0.83241,2402.2,2402.1,0.83242]
[1750528220961,5.28854,2402.6,2402.1,0.83242]
[1750528220962,3.2078,2402.6,2402.1,2.08112]
[1750528221165,2.28857599,2402.8,2402.7,0.83224]
[1750528223267,0.06847599,2402.8,2402.7,0.83224]
[1750528223564,0.90067599,2402.8,2402.7,0.83224]
[1750528224367,2.20277599,2402.8,2402.7,0.83224]
[1750528226069,1.37057599,2402.8,2402.7,0.83224]
[1750528227068,2.20277599,2402.8,2402.7,0.83224]
[1750528227564,1.37057599,2402.8,2402.7,0.83224]
[1750528228071,2.20277599,2402.8,2402.7,0.83224]
[1750528228670,1.37057599,2402.8,2402.7,0.83224]
[1750528228969,0.06847599,2402.8,2402.7,0.83224]
[1750528229470,0.90067599,2402.8,2402.7,0.83224]
[1750528230061,0.90067599,2402.8,2402.2,4.13897228]
[1750528230062,0.83237,2402.3,2402.2,4.13897228]
[1750528230265,2.0806,2402.7,2402.0,3.2078]
[1750528230266,0.83244,2402.1,2402.0,3.2078]
[1750528230566,0.83258,2401.7,2401.6,3.2078]
[1750528231174,0.83265,2401.5,2401.4,3.30658228]
[1750528231368,3.2078,2401.5,2401.1,3.2078]
[1750528231874,5.37186,2401.5,2401.3,0.83271]
[1750528232471,2.16406,2401.5,2401.3,0.83271]
[1750528232772,0.83269,2401.4,2401.2,0.83273]
[1750528232970,1.3467,2401.4,2401.2,0.83273]
[1750528233165,0.83274,2401.3,2401.1,0.83277]
[1750528233763,1.3467,2401.4,2400.8,6.51438228]
[1750528233964,1.3467,2401.4,2400.9,0.83284]
[1750528234372,0.83281,2401.1,2400.8,3.2078]
[1750528234572,0.83281,2401.1,2400.9,0.83284]
[1750528234768,1.3467,2401.4,2400.8,3.2078]
[1750528235097,1.3614,2401.6,2401.1,3.2078]
[1750528235366,2.19403,2401.6,2401.4,0.83267]
[1750528235581,3.54073,2401.6,2401.4,0.83267]
[1750528235766,2.7081,2401.6,2401.5,0.83265]
[1750528235965,3.54072,2401.6,2401.4,0.83266]
[1750528236165,2.7081,2401.6,2401.5,0.83265]
[1750528236972,3.54072,2401.6,2401.4,0.83267]
[1750528237775,3.54072,2401.6,2401.1,11.1264]
[1750528237974,3.54072,2401.6,2401.4,0.83265]
[1750528238179,3.54072,2401.6,2401.1,11.1264]
[1750528238672,0.06847599,2401.7,2401.6,0.83262]
[1750528241263,0.06847599,2401.7,2401.6,1.48382]
[1750528241466,0.06847599,2401.7,2401.6,2.79792]
[1750528241766,0.06847599,2401.7,2401.6,1.48382]
[1750528241966,30.9746,2402.2,2401.6,0.6512]
[1750528242177,0.83247,2402.1,2401.9,0.83251]
[1750528242369,1.4235,2402.0,2401.9,0.83251]
[1750528243081,2.256,2402.0,2401.6,0.6512]
[1750528243573,2.256,2402.0,2401.8,0.83252]
[1750528243777,0.83253,2401.9,2401.8,0.83255]
[1750528244077,2.25603,2401.9,2401.7,0.83256]
[1750528244277,1.4235,2401.9,2401.8,0.83255]
[1750528244580,2.25601,2401.9,2401.8,0.83255]
[1750528244978,1.4235,2401.9,2401.8,0.83255]
[1750528245275,30.51223,2402.2,2402.0,0.83245]
[1750528245476,2.24764,2402.1,2401.9,0.83249]
[1750528245678,0.83248,2402.0,2401.9,0.83249]
[1750528245878,1.4152,2402.0,2401.9,0.83249]
[1750528246579,3.2078,2402.2,2402.1,0.83244]
[1750528246775,30.50421,2402.2,2402.1,0.83244]
[1750528246979,0.83244,2402.1,2402.0,0.83245]
[1750528247582,2.24764,2402.1,2402.0,0.83245]
[1750528248577,0.83252,2401.9,2401.8,0.83253]
[1750528248778,0.8325,2402.0,2401.9,0.8325]
[1750528249575,1.4152,2402.1,2402.0,0.83248]
[1750528249976,2.31611599,2402.1,2402.0,0.83248]
[1750528250488,0.83249,2402.0,2401.9,0.83249]
[1750528250787,1.3077,2402.0,2401.9,0.83249]
[1750528251605,0.06847599,2402.1,2402.0,0.83248]
[1750528251980,0.90091599,2402.1,2402.0,0.83248]
[1750528252282,2.32401599,2402.1,2402.0,0.83248]
[1750528252485,1.49157599,2402.1,2402.0,0.83248]
[1750528252677,0.06847599,2402.1,2402.0,0.83248]
[1750528254481,0.06847599,2402.1,2402.0,4.04028]
[1750528256579,0.06847599,2402.1,2402.0,11.23028]
[1750528260985,1.4231,2402.5,2402.4,0.83234]
[1750528262186,1.4231,2402.5,2402.0,7.189]
[1750528262391,0.83243,2402.2,2402.1,0.83243]
[1750528262580,3.2078,2402.3,2401.8,5.38793228]
[1750528262581,4.0402,2402.3,2402.2,0.83241]
[1750528262780,0.83249,2402.0,2401.9,0.83248]
[1750528262986,0.83247,2402.1,2402.0,0.83247]
[1750528263286,0.90094599,2402.1,2402.0,0.83247]
[1750528264481,0.8325,2402.0,2401.9,0.83251]
[1750528264678,0.90092599,2402.1,2402.0,0.83248]
[1750528264892,0.06847599,2402.1,2402.0,0.83248]
[1750528265391,0.90091599,2402.1,2402.0,0.83248]
[1750528266482,0.06847599,2402.1,2402.0,0.83248]
[1750528267593,0.06847599,2402.1,2402.0,8.02148]
[1750528269085,0.06847599,2402.1,2402.0,0.83248]
[1750528269488,0.90091599,2402.1,2402.0,0.83248]
[1750528269695,0.06847599,2402.1,2402.0,0.83248]
[1750528269993,0.90091599,2402.1,2402.0,0.83248]
[1750528270797,0.06847599,2402.1,2402.0,0.83248]
[1750528270991,3.27627599,2402.1,2401.6,10.46358228]
[1750528271296,0.83253,2401.9,2401.8,0.83252]
[1750528271497,0.83251,2401.9,2401.5,2.08164]
[1750528271799,0.6947,2401.8,2401.5,2.08164]
[1750528272097,0.6947,2401.8,2401.7,0.83258]
[1750528275497,1.52725,2401.8,2401.7,0.83258]
[1750528276000,3.9025,2401.8,2401.4,3.30658228]
[1750528276197,0.83261,2401.7,2401.6,0.83261]
[1750528276793,0.6947,2401.8,2401.7,0.83258]
[1750528278294,28.4605,2402.0,2401.9,0.83251]
[1750528279292,29.29298,2402.0,2401.9,0.83251]
[1750528280516,28.4605,2402.0,2401.9,0.83251]
[1750528282899,29.29298,2402.0,2401.9,0.83251]
[1750528283101,28.4605,2402.0,2401.9,0.83251]
[1750528284503,29.29298,2402.0,2401.9,0.83251]
[1750528285300,28.4605,2402.0,2401.9,0.83251]
[1750528285696,27.0801,2402.0,2401.9,0.83251]
[1750528286102,1.4062,2402.2,2402.1,0.83244]
[1750528286299,0.6965,2402.3,2402.2,0.83241]
[1750528286602,5.2671,2402.7,2402.6,0.83227]
[1750528287600,2.0593,2402.7,2402.6,0.83227]
[1750528288803,2.89154,2402.7,2402.6,0.83227]
[1750528288997,2.89154,2402.7,2402.3,1.3633]
[1750528288998,0.83234,2402.4,2402.3,0.83236]
[1750528289193,32.22764067,2402.5,2402.0,3.2078]
[1750528289500,1.3598,2402.3,2402.2,0.83241]
[1750528289702,2.19217,2402.3,2402.2,0.83241]
[1750528290005,3.55027,2402.3,2402.2,0.83241]
[1750528290394,2.7179,2402.3,2402.2,0.83241]
[1750528291804,27.0764,2402.3,2402.2,0.83241]
[1750528292204,26.379,2402.4,2402.3,0.83237]
[1750528292706,0.6654,2402.8,2402.7,0.83224]
[1750528292908,27.8756,2402.8,2402.7,0.83224]
[1750528293102,27.0434,2402.8,2402.7,0.83224]
[1750528293601,0.6654,2402.8,2402.7,0.83224]
[1750528293805,27.0414,2402.8,2402.7,0.83224]
[1750528294002,0.6654,2402.8,2402.7,0.83224]
[1750528296608,2.0416,2402.8,2402.7,0.83224]
[1750528296904,1.4976,2402.8,2402.7,0.83224]
[1750528297114,0.83225,2402.7,2402.6,0.83226]
[1750528297306,2.20845,2402.7,2402.6,0.83226]
[1750528298603,1.3762,2402.7,2402.6,0.83226]
[1750528299606,4.70543,2402.8,2402.7,0.83224]
[1750528300304,0.83226,2402.7,2402.6,0.83226]
[1750528300500,3.8732,2402.8,2402.3,12.4386]
[1750528300703,3.2078,2402.8,2402.7,0.83224]
[1750528301701,4.04,2402.8,2402.7,0.83224]
[1750528302009,0.83225,2402.7,2402.6,0.83225]
[1750528302404,2.22245,2402.7,2402.6,0.83225]
[1750528303511,1.3902,2402.7,2402.0,12.40995]
[1750528303703,0.06847599,2402.3,2402.2,0.83241]
[1750528304908,4.04002,2402.8,2402.7,0.83224]
[1750528305215,29.5578,2402.8,2402.7,0.83224]
[1750528305510,7.121,2403.6,2402.8,2.08051]
[1750528305698,0.6924,2403.5,2403.4,0.83197]
[1750528306012,2.0293,2403.6,2403.5,0.83196]
[1750528306212,27.0512,2403.6,2403.4,0.83197]
[1750528306408,0.83199,2403.5,2403.4,0.83199]
[1750528306713,2.15609,2403.5,2403.4,0.83199]
[1750528308310,2.15609,2403.5,2403.3,0.83201]
[1750528308518,2.15609,2403.5,2403.4,0.83199]
[1750528309714,2.22456599,2403.5,2403.4,0.83199]
[1750528309913,2.22456599,2403.5,2403.3,0.832]
[1750528310114,0.83199,2403.4,2403.2,0.83204]
[1750528310314,2.86569,2403.4,2403.1,3.2078]
[1750528310512,2.86569,2403.4,2403.3,0.83203]
[1750528310713,2.0337,2403.4,2403.3,0.83203]
[1750528311616,2.0337,2403.4,2403.2,0.83204]
[1750528311814,0.83203,2403.3,2403.2,0.83204]
[1750528312010,1.3484,2403.3,2403.2,0.83204]
[1750528312513,27.6784,2403.3,2403.2,0.83204]
[1750528314411,26.33,2403.3,2403.2,0.83204]
[1750528314814,26.9829,2403.4,2403.3,0.83203]
[1750528315512,27.81489,2403.4,2403.3,0.83203]
[1750528315816,0.83204,2403.3,2403.2,0.83204]
[1750528316216,28.2826,2403.4,2402.8,3.2078]
[1750528316417,2.13178,2403.2,2403.1,0.83208]
[1750528316720,1.2997,2403.2,2403.1,0.83208]
[1750528317419,27.81492,2403.4,2403.3,0.83203]
[1750528317815,29.16322,2403.4,2403.3,0.83203]
[1750528318015,0.83204,2403.3,2403.2,0.83204]
[1750528318217,2.18034,2403.3,2403.2,0.83204]
[1750528319622,1.3483,2403.3,2403.2,0.83204]
[1750528320325,2.18033,2403.3,2403.2,0.83204]
[1750528321329,0.83206,2403.2,2403.1,4.03987]
[1750528321535,2.21176,2403.2,2403.1,4.03987]
[1750528321828,1.3797,2403.2,2403.1,4.03987]
[1750528322335,4.8424675,2403.2,2403.1,3.2078]
[1750528322635,28.51876,2403.2,2403.1,0.8321]
[1750528323133,0.8321,2403.1,2403.0,0.83211]
[1750528323329,2.2118,2403.1,2403.0,0.83211]
[1750528323528,1.3797,2403.1,2403.0,0.83211]
[1750528323724,2.2118,2403.1,2403.0,0.83211]
[1750528324130,2.9186,2403.1,2403.0,0.83211]
[1750528325127,2.0865,2403.1,2402.7,3.8817]
[1750528325334,0.83218,2402.9,2402.8,0.83218]
[1750528325535,0.6604,2403.0,2402.9,0.83217]
[1750528325735,1.9582,2403.0,2402.9,0.83217]
[1750528325932,2.79033,2403.0,2402.9,0.83217]
[1750528326132,1.9582,2403.0,2402.9,0.83217]
[1750528326637,2.79033,2403.0,2402.9,0.83217]
[1750528327138,1.9582,2403.0,2402.9,0.83217]
[1750528327836,2.79033,2403.0,2402.9,0.83217]
[1750528328437,1.9582,2403.0,2402.9,0.83217]
[1750528329334,2.79033,2403.0,2402.9,0.83217]
[1750528329840,1.9582,2403.0,2402.7,3.2078]
[1750528330032,0.83217,2402.9,2402.8,0.83218]
[1750528330234,0.8322,2402.8,2402.7,3.2078]
[1750528330441,0.8322,2402.8,2402.4,3.2078]
[1750528330442,0.83231,2402.5,2402.4,3.2078]
[1750528330642,27.12231,2402.5,2402.4,3.2078]
[1750528331135,0.83248,2402.0,2401.9,3.30658228]
[1750528331336,5.8385075,2402.2,2401.7,0.7013]
[1750528331546,0.8325,2402.0,2401.9,0.83251]
[1750528332038,0.83258,2401.7,2401.6,3.30658228]
[1750528332235,26.286,2401.8,2401.5,2.08164]
[1750528332438,26.286,2401.8,2401.7,0.83258]
[1750528332635,0.83249,2402.0,2401.8,0.83253]
[1750528332844,27.12149,2402.0,2401.8,0.83253]
[1750528333136,27.12149,2402.0,2401.9,0.83251]
[1750528333339,27.12149,2402.0,2401.5,4.72084]
[1750528333340,1.314,2402.1,2402.0,0.83248]
[1750528333538,27.601,2402.1,2402.0,0.83248]
[1750528333734,28.43345,2402.1,2401.9,0.83249]
[1750528333935,28.43345,2402.1,2402.0,0.83248]
[1750528334137,27.601,2402.1,2402.0,0.83248]
[1750528334844,1.314,2402.1,2402.0,0.83248]
[1750528335047,27.599,2402.1,2402.0,0.83248]
[1750528335237,28.43144,2402.1,2402.0,0.83248]
[1750528335932,1.314,2402.1,2402.0,0.83248]
[1750528336139,29.4908,2402.2,2402.1,0.83244]
[1750528336341,3.2078,2402.2,2402.1,0.83244]
[1750528337142,3.2078,2402.7,2402.1,10.2928]
[1750528337342,26.282,2402.6,2402.5,0.83229]
[1750528337845,27.11428,2402.6,2402.5,0.83229]
[1750528338040,0.83226,2402.7,2402.5,0.83229]
[1750528338242,0.83226,2402.7,2402.6,0.83227]
[1750528338442,27.6267,2402.8,2402.4,3.2078]
[1750528338840,0.83231,2402.5,2402.4,4.04012]
[1750528339743,0.83231,2402.5,2402.4,3.2078]
[1750528339949,0.83236,2402.4,2402.2,0.83238]
[1750528340249,2.90146,2402.4,2402.2,0.83238]
[1750528340546,0.83237,2402.3,2402.2,0.83238]
[1750528340953,0.83248,2402.1,2401.8,3.2078]
[1750528341247,0.90095599,2402.1,2402.0,0.83248]
[1750528341651,1.49287599,2402.1,2401.9,0.83249]
[1750528341841,0.83251,2401.9,2401.8,4.04033]
[1750528342046,0.8325,2402.0,2401.9,0.83251]
[1750528343049,2.32533599,2402.1,2402.0,0.83248]
[1750528343251,0.83248,2402.0,2401.9,0.83249]
[1750528343451,0.83251,2401.9,2401.8,4.04032]
[1750528343650,0.8325,2402.0,2401.9,0.83251]
[1750528343948,1.49287599,2402.1,2401.8,3.2078]
[1750528344149,0.83249,2402.0,2401.9,0.8325]
[1750528344549,2.32534599,2402.1,2402.0,0.83248]
[1750528345846,1.49287599,2402.1,2402.0,0.83248]
[1750528346450,0.06847599,2402.1,2402.0,0.83248]
[1750528347353,0.06847599,2402.1,2402.0,7.91748]
[1750528348548,0.06847599,2402.1,2402.0,0.83248]
[1750528350744,0.06847599,2402.1,2402.0,1.53248]
[1750528351148,0.83231,2402.5,2402.4,0.83234]
[1750528351347,0.83229,2402.6,2402.5,0.83229]
[1750528351547,0.83227,2402.6,2402.5,0.83229]
[1750528351748,0.7152,2402.8,2402.3,3.2078]
[1750528351749,0.83226,2402.7,2402.6,0.83226]
[1750528352055,0.83232,2402.5,2402.4,0.83231]
[1750528352246,0.83229,2402.6,2402.5,0.83229]
[1750528352449,2.20485,2402.7,2402.6,0.83227]
[1750528353549,1.54741,2402.8,2402.7,0.83224]
[1750528353752,7.085,2403.1,2402.4,2.08083]
[1750528353753,1.3726,2403.1,2403.0,0.83213]
[1750528353956,0.83208,2403.2,2403.1,0.83208]
[1750528354253,0.83206,2403.2,2403.1,0.83208]
[1750528354555,0.83205,2403.3,2403.2,0.83206]
[1750528354952,2.15065,2403.3,2403.1,0.83208]
[1750528355251,1.3186,2403.3,2403.0,0.83212]
[1750528355458,2.15065,2403.3,2403.1,0.83206]
[1750528355648,2.15065,2403.3,2403.2,0.83206]
[1750528355963,1.3259,2403.4,2403.3,0.83203]
[1750528355964,0.6506,2403.4,2403.3,0.83203]
[1750528356155,1.48259,2403.4,2403.3,0.83203]
[1750528356755,0.6506,2403.4,2403.3,0.83203]
[1750528357151,0.6506,2403.4,2403.2,4.03985]
[1750528357456,2.88963,2403.3,2403.2,3.2078]
[1750528357659,2.0576,2403.3,2403.2,4.03986]
[1750528358263,0.7018,2403.3,2403.2,4.03986]
[1750528358462,0.6506,2403.4,2403.3,0.83203]
[1750528358665,1.48259,2403.4,2403.3,0.83203]
[1750528359461,0.6506,2403.4,2403.3,0.83203]
[1750528359661,1.48259,2403.4,2403.3,0.83203]
[1750528360165,1.48261,2403.4,2403.3,0.83203]
[1750528361167,0.83203,2403.3,2403.2,3.2078]
[1750528361359,0.83212,2403.1,2402.9,3.2078]
[1750528361561,0.83212,2403.1,2403.0,0.83213]
[1750528361870,0.83208,2403.2,2403.1,0.83209]
[1750528362166,0.83208,2403.2,2402.9,3.2078]
[1750528362167,2.22584,2403.3,2403.2,0.83206]
[1750528362372,1.3938,2403.3,2402.9,3.2078]
[1750528362563,0.83206,2403.2,2403.0,0.83211]
[1750528362866,2.2259,2403.1,2403.0,0.83211]
[1750528363059,1.3938,2403.1,2403.0,0.83211]
[1750528365570,0.83205,2403.3,2403.2,0.83206]
[1750528365967,0.83211,2403.1,2403.0,0.83212]
[1750528366163,2.23949,2403.2,2403.1,0.8321]
[1750528366665,1.4074,2403.2,2403.1,0.8321]
[1750528366869,2.23946,2403.2,2403.1,0.8321]
[1750528368472,0.83213,2403.0,2402.6,10.2568]
[1750528368672,1.3111,2402.9,2402.8,0.8322]
[1750528368971,1.9718,2402.9,2402.8,0.8322]
[1750528369274,0.83221,2402.8,2402.7,0.83222]
[1750528369475,2.14331,2402.8,2402.7,0.83222]
[1750528370173,1.3111,2402.8,2402.7,0.83222]
[1750528371468,0.6607,2402.9,2402.8,0.8322]
[1750528372470,0.7107,2403.1,2403.0,0.83213]
[1750528372772,0.7107,2403.1,2403.0,4.03993]
[1750528373175,0.663,2403.2,2403.1,0.8321]
[1750528374976,0.06847599,2403.3,2403.2,0.83206]
[1750528375876,0.83192,2403.7,2403.1,2.08019]
[1750528376074,1.54162,2403.6,2403.5,0.83193]
[1750528376272,0.7097,2403.6,2403.5,0.83193]
[1750528376575,2.1073,2403.6,2403.5,0.83193]
[1750528377972,2.93922,2403.6,2403.5,0.83193]
[1750528378373,2.1073,2403.6,2403.5,0.83193]
[1750528378977,0.7097,2403.6,2403.5,0.83193]
[1750528381797,1.4079,2403.9,2403.3,3.2078]
[1750528381798,1.4079,2403.9,2403.4,2.07999]